bitfinex-derivatives/quotes_ETHF0:USTF0_20250612
["timestamp","ask_amount","ask_price","bid_price","bid_amount"]
[1749722665275,1.45545481,2747.5,2747.4,23.08533]
[1749722666482,2.18325481,2747.5,2747.4,22.3575]
[1749722666883,1.45545481,2747.5,2747.4,22.3575]
[1749722667384,1.45545481,2747.5,2747.4,23.08533]
[1749722667984,2.18325481,2747.5,2747.4,23.08533]
[1749722668185,1.45545481,2747.5,2747.4,23.08533]
[1749722668684,2.18325481,2747.5,2747.4,23.08533]
[1749722668886,1.45545481,2747.5,2747.4,23.08533]
[1749722669082,1.45545481,2747.5,2747.4,22.3575]
[1749722669288,1.45545481,2747.5,2747.4,23.08533]
[1749722669584,2.18323762,2747.5,2747.4,23.08533]
[1749722669890,2.18323762,2747.5,2747.4,21.164]
[1749722670179,2.18323762,2747.5,2747.4,21.89183]
[1749722670385,1.45543762,2747.5,2747.4,21.89183]
[1749722670585,1.45543762,2747.5,2747.4,23.11203]
[1749722671889,1.45543762,2747.5,2747.4,28.11203]
[1749722672186,1.45543762,2747.5,2747.4,23.11203]
[1749722672786,1.45543762,2747.5,2747.4,23.75833]
[1749722674794,0.00545981,2747.6,2747.5,0.7278]
[1749722675085,1.46079226,2747.6,2747.5,1.9121]
[1749722675281,1.46079226,2747.6,2747.5,42.7121]
[1749722675482,3.63610705,2747.6,2747.5,42.7121]
[1749722675880,1.46079226,2747.6,2747.5,42.7121]
[1749722676787,2.18858226,2747.6,2747.5,21.163]
[1749722676987,1.46079226,2747.6,2747.5,21.8908]
[1749722677484,3.63610705,2747.6,2747.5,21.8908]
[1749722677684,4.36388705,2747.6,2747.5,21.163]
[1749722677987,4.36388705,2747.6,2747.5,16.852]
[1749722678284,2.18857226,2747.6,2747.5,16.852]
[1749722678480,5.08899198,2747.6,2747.5,16.852]
[1749722679084,0.7278,2747.5,2747.4,0.0620172]
[1749722679284,3.40393245,2747.5,2747.4,0.0620172]
[1749722679482,0.72788,2747.2,2747.1,0.00545981]
[1749722679689,2.18321245,2747.2,2747.1,16.87445981]
[1749722679989,2.18321245,2747.2,2747.1,0.00545981]
[1749722680188,7.18321245,2747.2,2747.1,0.00545981]
[1749722680489,0.72809,2746.4,2746.3,4.31]
[1749722680686,2.18342245,2746.4,2746.3,4.31]
[1749722680888,5.0645572,2746.4,2746.3,21.184]
[1749722681087,4.3364672,2746.4,2746.3,21.91212]
[1749722681290,1.45533245,2746.4,2746.3,21.91212]
[1749722681591,1.45533245,2746.4,2746.3,23.16822]
[1749722681791,3.61727649,2746.4,2746.3,23.16822]
[1749722681993,1.45533245,2746.4,2746.3,23.16822]
[1749722682193,1.45533245,2746.4,2746.3,21.91212]
[1749722682395,1.45533245,2746.4,2746.3,16.876]
[1749722682594,2.18344245,2746.4,2746.3,16.876]
[1749722682995,2.18342245,2746.4,2746.3,16.876]
[1749722684199,1.45533245,2746.4,2746.3,17.60412]
[1749722684400,3.61751771,2746.4,2746.3,18.87602]
[1749722684589,3.61729306,2746.4,2746.3,18.87602]
[1749722686495,3.61729306,2746.4,2746.2,3.8359]
[1749722686696,3.61729306,2746.3,2746.2,3.2078]
[1749722686893,4.34541306,2746.3,2746.2,3.2078]
[1749722687092,4.34541306,2746.3,2746.2,24.5208]
[1749722687494,3.61729306,2746.3,2746.2,25.24895]
[1749722687891,1.45533245,2746.3,2746.2,26.53615]
[1749722688097,3.61729306,2746.3,2746.2,26.53615]
[1749722688299,3.61729306,2746.3,2746.2,26.53715]
[1749722688697,1.45533245,2746.3,2746.2,26.53715]
[1749722688893,2.18345245,2746.3,2746.2,25.809]
[1749722689200,3.61729306,2746.3,2746.2,25.24995]
[1749722689496,3.61804196,2746.3,2746.2,25.24995]
[1749722689696,1.45608135,2746.3,2746.2,25.26095]
[1749722689898,3.61822309,2746.3,2746.2,25.26095]
[1749722690094,1.45608135,2746.3,2746.2,25.26095]
[1749722690696,3.61776302,2746.3,2746.2,25.26095]
[1749722690898,4.34588302,2746.3,2746.2,3.2078]
[1749722691201,2.09758135,2746.3,2746.2,20.82395]
[1749722692200,4.25860217,2746.3,2746.2,20.0958]
[1749722692401,2.82570135,2746.3,2746.2,20.0958]
[1749722693705,4.25756938,2746.3,2746.2,16.877]
[1749722693900,4.98568938,2746.3,2746.2,16.877]
[1749722694099,0.72815,2746.2,2746.1,4.437]
[1749722694302,1.45608135,2746.2,2745.9,41.52822]
[1749722694500,0.7282,2746.0,2745.9,40.8]
[1749722694702,2.18428135,2746.0,2745.9,62.111]
[1749722694907,1.45608135,2746.0,2745.9,22.04421]
[1749722695309,1.45608135,2746.0,2745.9,62.84421]
[1749722695608,1.45608135,2746.0,2745.9,64.07071]
[1749722696201,1.97973,2746.3,2745.9,64.07071]
[1749722696202,2.15998803,2746.6,2746.5,0.72807]
[1749722696506,0.72804,2746.6,2746.5,21.317]
[1749722697306,5.37324784,2746.8,2746.5,21.317]
[1749722697607,0.72804,2746.6,2746.5,22.04507]
[1749722697809,3.21325981,2746.8,2746.5,21.317]
[1749722698109,0.00545981,2746.8,2746.6,3.93583]
[1749722698310,0.73345981,2746.8,2746.7,0.72801]
[1749722698502,0.72801,2746.7,2746.6,3.2078]
[1749722698702,0.72801,2746.7,2746.6,0.72804]
[1749722698902,0.72804,2746.6,2746.5,24.5248]
[1749722699104,0.00545981,2746.8,2746.5,21.325]
[1749722699301,0.00545981,2746.8,2746.6,16.887]
[1749722699613,1.30725981,2746.8,2746.3,0.79557701]
[1749722699912,0.72808,2746.5,2746.4,21.331]
[1749722700808,0.72809,2746.4,2746.3,0.06747701]
[1749722701002,2.55459,2746.4,2746.3,16.95947701]
[1749722702113,1.31599,2746.4,2746.3,16.95947701]
[1749722702420,0.6044,2746.6,2746.5,0.72807]
[1749722702611,1.36614981,2746.8,2746.7,0.72801]
[1749722702811,0.00545981,2746.8,2746.7,17.63101]
[1749722703010,0.73344981,2746.8,2746.7,17.63101]
[1749722703912,0.73344981,2746.8,2746.7,16.903]
[1749722704116,0.73344981,2746.8,2746.7,17.63101]
[1749722705115,0.73344981,2746.8,2746.7,16.903]
[1749722708116,2.18940591,2746.8,2746.7,16.903]
[1749722709819,1.46141591,2746.8,2746.7,17.63101]
[1749722710117,0.73344981,2746.8,2746.7,16.903]
[1749722710515,2.18936704,2746.8,2746.7,16.903]
[1749722710721,0.73344981,2746.8,2746.7,16.903]
[1749722711122,0.72807,2746.6,2746.4,3.803]
[1749722711324,0.72807,2746.6,2746.5,22.05504]
[1749722711524,0.00545981,2746.8,2746.4,5.70887]
[1749722711724,0.72804,2746.6,2746.5,21.322]
[1749722712320,0.72804,2746.6,2746.5,22.05007]
[1749722712520,0.72804,2746.6,2746.5,21.322]
[1749722713021,0.72807,2746.5,2746.4,0.72808]
[1749722713321,0.72807,2746.5,2746.4,21.34]
[1749722713725,0.72807,2746.5,2746.4,22.06809]
[1749722714224,0.00545981,2746.8,2746.4,21.34]
[1749722714418,2.18404588,2746.7,2746.6,0.72804]
[1749722714920,1.45602588,2746.7,2746.6,0.72804]
[1749722715121,0.73345981,2746.8,2746.7,0.72801]
[1749722715321,0.72804,2746.7,2746.6,0.72803]
[1749722715724,0.72804,2746.7,2746.6,1.33723]
[1749722715924,0.00545981,2746.8,2746.7,0.72801]
[1749722716725,0.00545981,2746.8,2746.6,2.54672]
[1749722717023,0.73346981,2746.8,2746.7,0.72801]
[1749722717226,0.73346981,2746.8,2746.7,22.06101]
[1749722717433,0.73346981,2746.8,2746.7,21.333]
[1749722717622,0.00545981,2746.8,2746.7,0.72801]
[1749722717921,3.2078,2747.6,2746.8,1.81995]
[1749722718122,2.18359129,2747.5,2747.4,0.72783]
[1749722718327,2.18359129,2747.5,2747.4,21.33]
[1749722718522,0.622,2747.7,2747.6,0.72778]
[1749722718828,0.14793,2747.8,2747.4,22.6185]
[1749722719029,0.72778,2747.6,2747.5,0.72779]
[1749722719233,0.87566,2747.8,2747.6,0.72778]
[1749722719525,0.72775,2747.7,2747.6,0.72778]
[1749722719738,0.87566,2747.8,2747.5,1.2885]
[1749722720026,0.14793,2747.8,2747.6,0.72776]
[1749722720227,0.87566,2747.8,2747.5,1.2885]
[1749722720427,0.87566,2747.8,2747.6,1.32286]
[1749722720927,0.14793,2747.8,2747.7,0.72775]
[1749722721123,0.14793,2747.8,2747.7,2.01625]
[1749722722028,0.14793,2747.8,2747.7,2.64235]
[1749722724431,0.72771,2747.9,2747.8,0.72772]
[1749722724633,0.72771,2747.9,2747.8,40.8]
[1749722724925,0.72771,2747.9,2747.8,62.13]
[1749722725526,0.72771,2747.9,2747.8,62.85772]
[1749722725726,0.72771,2747.9,2747.8,62.85372]
[1749722726030,0.72769,2748.0,2747.8,62.85372]
[1749722726234,0.73311981,2748.1,2747.8,62.126]
[1749722726432,0.73311981,2748.1,2747.9,0.7277]
[1749722726629,0.00545981,2748.1,2747.9,0.72768]
[1749722726834,0.72769,2748.0,2747.9,0.72768]
[1749722727131,0.7277,2747.9,2747.8,40.8]
[1749722727338,3.9355,2747.9,2747.8,21.317]
[1749722727635,0.72775,2747.7,2747.6,0.00545981]
[1749722727838,0.72775,2747.7,2747.6,21.33345981]
[1749722728230,1.91575,2747.7,2747.6,21.33345981]
[1749722731239,1.91575,2747.7,2747.6,22.06123981]
[1749722731437,1.91575,2747.7,2747.6,21.33345981]
[1749722732031,6.91575,2747.7,2747.6,4.44645981]
[1749722732336,1.91575,2747.7,2747.6,21.31745981]
[1749722735038,0.72775,2747.7,2747.6,21.31745981]
[1749722735938,0.72775,2747.7,2747.6,21.37947701]
[1749722736438,1.97265,2747.7,2747.6,21.37947701]
[1749722736630,1.97265,2747.7,2747.6,16.93347701]
[1749722736829,1.97265,2747.7,2747.6,16.94978278]
[1749722737734,1.97265,2747.7,2747.6,0.08378278]
[1749722738139,1.97265,2747.7,2747.6,16.95178278]
[1749722740339,1.97265,2747.7,2747.6,0.08378278]
[1749722742036,3.42830392,2747.7,2747.6,0.08378278]
[1749722743942,2.18340392,2747.7,2747.6,0.08378278]
[1749722745540,1.45559795,2747.7,2747.6,0.08378278]
[1749722745743,3.2078,2747.9,2747.7,0.72773]
[1749722746039,0.71144423,2747.8,2747.7,0.72773]
[1749722747644,0.71144423,2747.8,2747.7,0.72775]
[1749722747844,0.71144423,2747.8,2747.7,1.98115]
[1749722748247,0.71144423,2747.8,2747.7,1.2534]
[1749722749646,0.71144423,2747.8,2747.7,1.98115]
[1749722750343,0.00545981,2748.1,2747.7,1.2534]
[1749722750645,0.72767,2748.0,2747.9,0.7277]
[1749722750847,0.72767,2748.0,2747.9,22.4857]
[1749722751346,0.72767,2748.0,2747.9,23.2134]
[1749722751740,0.00545981,2748.1,2748.0,0.72767]
[1749722751946,0.00545981,2748.1,2748.0,1.92607]
[1749722753049,0.7276,2748.3,2748.2,0.72759]
[1749722753249,5.0266,2748.6,2748.2,4.415]
[1749722753452,5.0266,2748.6,2748.3,18.6296]
[1749722753650,0.72756,2748.4,2748.3,18.6296]
[1749722755241,0.72756,2748.4,2748.3,0.6012]
[1749722755439,0.72759,2748.3,2748.2,4.415]
[1749722755644,0.72759,2748.3,2748.2,21.236]
[1749722763156,0.72759,2748.3,2748.2,21.96362]
[1749722763453,0.72759,2748.3,2748.2,21.236]
[1749722764654,0.72759,2748.3,2748.2,21.96362]
[1749722765252,0.72759,2748.3,2748.2,22.0256372]
[1749722765452,0.72759,2748.3,2748.2,21.2980172]
[1749722769050,0.72759,2748.3,2748.2,4.4770172]
[1749722769356,3.93539,2748.3,2748.2,21.2590172]
[1749722769757,4.52629,2748.3,2748.2,21.9866372]
[1749722769952,1.31849,2748.3,2748.2,21.2590172]
[1749722770158,4.52629,2748.3,2748.2,21.2550172]
[1749722772459,4.52629,2748.3,2748.2,0.0620172]
[1749722772661,4.52629,2748.3,2748.2,21.2500172]
[1749722773260,5.98154092,2748.3,2748.2,21.2500172]
[1749722773455,4.52629,2748.3,2748.2,21.2500172]
[1749722774160,5.98152848,2748.3,2748.2,21.2500172]
[1749722774556,1.31849,2748.3,2748.2,21.2500172]
[1749722775558,1.31849,2748.3,2748.2,21.9776372]
[1749722775763,2.77360706,2748.3,2748.2,21.2500172]
[1749722779172,2.77360706,2748.3,2748.2,21.2350172]
[1749722781163,2.77360706,2748.3,2748.2,0.0620172]
[1749722781364,5.98140706,2748.3,2748.2,0.0620172]
[1749722781565,5.98140706,2748.3,2748.2,21.1840172]
[1749722781770,5.98140706,2748.3,2748.2,0.0620172]
[1749722781964,10.98140706,2748.3,2748.2,7.2e-06]
[1749722782175,1.81913,2748.1,2747.8,4.368]
[1749722782370,0.72775,2747.7,2747.6,4.37345981]
[1749722782663,2.18327507,2747.7,2747.6,21.13345981]
[1749722783262,3.47977507,2747.7,2747.6,21.13345981]
[1749722783867,3.47977507,2747.7,2747.6,4.37345981]
[1749722784069,3.47977507,2747.7,2747.6,21.14045981]
[1749722784463,3.47977507,2747.7,2747.6,9.81e-06]
[1749722784668,3.47977507,2747.7,2747.6,16.76300981]
[1749722786569,3.47977507,2747.7,2747.6,9.81e-06]
[1749722789775,3.47977507,2747.7,2747.6,0.72778981]
[1749722789776,2.18327507,2747.7,2747.6,0.72778981]
[1749722790082,0.72767,2748.1,2748.0,0.72765]
[1749722790372,0.72767,2748.1,2748.0,21.86167]
[1749722790675,0.72767,2748.1,2748.0,21.134]
[1749722792479,0.72767,2748.1,2748.0,22.328]
[1749722793579,0.72767,2748.1,2748.0,21.134]
[1749722793879,0.72775,2747.7,2747.6,1.82310981]
[1749722794178,0.72775,2747.7,2747.6,22.95610981]
[1749722794372,0.5908,2748.0,2747.6,23.68388981]
[1749722794571,0.72775,2747.7,2747.6,23.68388981]
[1749722794982,0.72774,2747.8,2747.7,0.72774]
[1749722795170,0.72775,2747.7,2747.6,22.95610981]
[1749722795674,0.72775,2747.7,2747.6,23.68388981]
[1749722795876,0.72775,2747.7,2747.6,22.95610981]
[1749722796076,0.72775,2747.7,2747.6,22.48988981]
[1749722796480,0.72775,2747.7,2747.6,21.76210981]
[1749722797171,0.72775,2747.7,2747.6,9.81e-06]
[1749722797482,0.72775,2747.7,2747.6,21.12700981]
[1749722798082,0.72775,2747.7,2747.6,9.81e-06]
[1749722798283,0.72775,2747.7,2747.6,21.12300981]
[1749722798478,0.72775,2747.7,2747.6,4.36900981]
[1749722798779,0.72775,2747.7,2747.6,21.12300981]
[1749722801379,0.72775,2747.7,2747.6,9.81e-06]
[1749722801580,2.18343083,2747.7,2747.6,9.81e-06]
[1749722801780,0.72793,2747.0,2746.9,4.369]
[1749722801979,3.93573,2747.0,2746.9,4.369]
[1749722802179,5.39169511,2747.0,2746.9,4.369]
[1749722802382,3.93573,2747.0,2746.9,4.369]
[1749722802679,5.39170115,2747.0,2746.9,4.369]
[1749722803184,0.72799,2746.8,2746.7,0.00545981]
[1749722806887,0.00545981,2747.2,2747.1,0.72791]
[1749722807080,3.2078,2747.9,2747.3,1.81959]
[1749722807386,5.02708,2747.9,2747.4,1.8392]
[1749722807689,0.72778,2747.6,2747.5,4.9597]
[1749722808484,0.72778,2747.6,2747.5,6.2069]
[1749722808682,0.72778,2747.6,2747.5,6.9347]
[1749722810195,0.72778,2747.6,2747.5,6.2069]
[1749722810492,0.72778,2747.6,2747.5,6.9347]
[1749722812085,0.00545981,2747.8,2747.7,0.72775]
[1749722812293,0.00545981,2747.8,2747.7,17.52375]
[1749722812488,0.73317981,2747.8,2747.7,16.796]
[1749722812990,0.73317981,2747.8,2747.7,18.0079]
[1749722813692,0.73317981,2747.8,2747.7,18.73565]
[1749722814090,0.73317981,2747.8,2747.7,18.0079]
[1749722814593,0.72778,2747.6,2747.5,3.7955]
[1749722814794,0.72788,2747.2,2747.1,25.94471]
[1749722814994,0.72788,2747.2,2747.1,47.10371]
[1749722815195,0.7278,2747.6,2747.5,0.72779]
[1749722815491,0.72778,2747.7,2747.6,0.72776]
[1749722815689,0.73320981,2747.8,2747.7,0.72775]
[1749722815995,0.00545981,2747.8,2747.7,1.34485]
[1749722816191,0.73317981,2747.8,2747.7,1.34485]
[1749722817188,0.73317981,2747.8,2747.7,0.6171]
[1749722817697,0.7278,2747.5,2747.4,0.72781]
[1749722817891,0.7278,2747.5,2747.4,21.90281]
[1749722818288,0.7278,2747.5,2747.4,21.90181]
[1749722818488,0.00545981,2747.8,2747.2,1.8827]
[1749722818789,0.7278,2747.5,2747.4,21.174]
[1749722819387,0.7278,2747.5,2747.4,4.371]
[1749722819588,0.7278,2747.5,2747.4,21.90483]
[1749722820097,0.7278,2747.5,2747.4,21.177]
[1749722820298,0.7278,2747.5,2747.4,4.371]
[1749722820692,0.7278,2747.5,2747.4,21.172]
[1749722820893,2.0179,2747.5,2747.4,21.172]
[1749722821391,3.47362562,2747.5,2747.4,21.178]
[1749722821588,3.47362562,2747.5,2747.4,4.371]
[1749722821793,3.47362562,2747.5,2747.4,21.178]
[1749722821995,3.47362562,2747.5,2747.4,4.371]
[1749722822187,0.72788,2747.2,2747.1,26.38]
[1749722822389,0.72788,2747.2,2747.1,4.371]
[1749722822699,2.18375408,2747.2,2747.1,4.371]
[1749722822900,4.02305408,2747.2,2747.1,4.371]
[1749722823598,2.77405408,2747.2,2747.1,4.371]
[1749722826002,1.31818,2747.2,2747.1,4.371]
[1749722827001,2.77401537,2747.2,2747.1,4.371]
[1749722827596,2.77400861,2747.2,2747.1,4.371]
[1749722828098,1.31818,2747.2,2747.1,4.371]
[1749722828298,3.2078,2747.3,2747.2,0.72788]
[1749722828598,0.7278,2747.5,2747.4,0.7898172]
[1749722828903,0.7278,2747.6,2747.5,0.72778]
[1749722829203,0.7278,2747.5,2747.4,21.9578272]
[1749722829399,0.72779,2747.6,2747.5,0.72778]
[1749722831404,0.7278,2747.5,2747.4,23.1806272]
[1749722831804,0.7278,2747.6,2747.5,0.72778]
[1749722832200,0.7278,2747.5,2747.4,4.4340172]
[1749722832401,0.7278,2747.5,2747.4,21.2360172]
[1749722832602,0.7278,2747.5,2747.4,0.0620172]
[1749722832906,0.72796,2746.9,2746.8,4.372]
[1749722833101,0.72796,2746.9,2746.8,21.172]
[1749722833296,0.72796,2746.9,2746.8,5.09999]
[1749722833602,0.72796,2746.9,2746.8,21.92199]
[1749722833805,0.72796,2747.0,2746.9,0.72795]
[1749722834195,0.72791,2747.2,2747.1,0.7279]
[1749722834403,3.0452,2747.4,2746.9,1.2498]
[1749722834604,0.72793,2747.0,2746.9,1.97774]
[1749722835499,0.72796,2746.9,2746.8,21.92197]
[1749722835899,0.72796,2746.9,2746.8,23.17177]
[1749722837102,0.72795,2747.0,2746.9,0.72793]
[1749722839306,0.72793,2747.1,2747.0,0.72791]
[1749722841009,0.72796,2747.0,2746.9,0.72794]
[1749722841407,0.72793,2747.1,2747.0,0.72791]
[1749722842309,0.72796,2747.0,2746.9,0.72794]
[1749722843908,0.72796,2747.0,2746.9,17.51794]
[1749722844210,0.72796,2747.0,2746.9,17.51796]
[1749722846011,0.72796,2747.0,2746.9,10.6853658]
[1749722847604,0.72796,2747.0,2746.9,21.90596]
[1749722848516,0.72796,2746.9,2746.8,0.0620172]
[1749722848814,0.72796,2746.9,2746.8,21.9600072]
[1749722849610,0.72796,2746.9,2746.8,21.2320172]
[1749722850614,0.72796,2746.9,2746.8,4.4580172]
[1749722850816,0.72796,2746.9,2746.8,21.2320172]
[1749722851027,3.93576,2746.9,2746.8,21.2280172]
[1749722851315,3.93576,2746.9,2746.8,4.4580172]
[1749722851510,5.39166583,2746.9,2746.8,21.2340172]
[1749722852609,6.63996583,2746.9,2746.8,21.2340172]
[1749722854417,6.63996583,2746.9,2746.8,0.0620172]
[1749722854614,6.63996583,2746.9,2746.8,16.8360172]
[1749722856321,6.63996583,2746.9,2746.8,16.8320172]
[1749722857921,6.64012296,2746.9,2746.8,16.8320172]
[1749722858719,6.64012296,2746.9,2746.8,16.8200172]
[1749722859115,6.64012296,2746.9,2746.8,16.8190172]
[1749722861612,6.64012296,2746.9,2746.8,0.0620172]
[1749722861821,6.64012296,2746.9,2746.8,16.8110172]
[1749722863317,5.39182296,2746.9,2746.8,16.8110172]
[1749722863523,5.39182296,2746.9,2746.8,17.5390072]
[1749722863720,5.39182296,2746.9,2746.8,18.6858172]
[1749722863919,3.93576,2746.9,2746.8,18.6858172]
[1749722864121,5.39167683,2746.9,2746.8,18.6858172]
[1749722865429,5.39167683,2746.9,2746.8,17.4430172]
[1749722866124,1.45591683,2746.9,2746.8,18.1710072]
[1749722866325,5.02746,2747.3,2746.9,0.72793]
[1749722866527,0.72795,2747.0,2746.9,1.94673]
[1749722866729,0.72795,2747.0,2746.9,6.29873]
[1749722868924,3.2078,2747.3,2746.9,6.29873]
[1749722869130,0.72792,2747.1,2747.0,0.72789]
[1749722869324,2.18370684,2747.1,2747.0,0.72789]
[1749722869522,0.72792,2747.1,2747.0,0.72789]
[1749722869727,2.18368996,2747.1,2747.0,0.72789]
[1749722869932,0.72792,2747.1,2747.0,0.72789]
[1749722870728,2.18368108,2747.1,2747.0,0.72789]
[1749722871026,0.72792,2747.1,2747.0,0.72789]
[1749722871428,0.72793,2747.0,2746.9,5.07994]
[1749722872131,0.72793,2747.1,2747.0,0.72791]
[1749722872427,2.18370155,2747.1,2747.0,0.72791]
[1749722873329,0.72796,2747.0,2746.9,0.72795]
[1749722873534,0.72796,2747.0,2746.9,21.81095]
[1749722876636,0.72793,2747.1,2747.0,0.72789]
[1749722876935,0.7279,2747.2,2747.1,0.72788]
[1749722877134,2.18359904,2747.2,2747.1,0.72788]
[1749722877529,6.82181,2747.7,2747.1,5.0]
[1749722877530,3.2078,2747.7,2747.1,5.0]
[1749722877736,0.00545981,2747.8,2747.7,0.72775]
[1749722878032,3.2078,2748.4,2748.3,0.72759]
[1749722878225,3.2078,2748.8,2748.7,0.72748]
[1749722878433,3.2078,2748.8,2748.7,21.086]
[1749722878727,3.93526,2748.8,2748.7,21.086]
[1749722880041,0.72751,2748.6,2748.5,0.00545981]
[1749722880637,0.72751,2748.6,2748.5,21.09545981]
[1749722881037,0.72751,2748.6,2748.5,16.74345981]
[1749722881229,0.72762,2748.2,2748.1,21.098]
[1749722881429,0.72764,2748.1,2748.0,16.766]
[1749722881636,1.32044,2748.1,2748.0,16.766]
[1749722882138,0.72777,2747.6,2747.4,44.73561]
[1749722882339,1.2837,2748.0,2747.6,0.72777]
[1749722882736,0.72777,2747.6,2747.5,44.3191]
[1749722883534,0.72777,2747.6,2747.5,27.5511]
[1749722883740,0.72777,2747.6,2747.5,44.3311]
[1749722884142,0.72777,2747.6,2747.5,45.0589]
[1749722884734,0.72777,2747.6,2747.5,44.3311]
[1749722885935,0.72777,2747.6,2747.5,43.143]
[1749722886738,3.2078,2747.9,2747.5,43.143]
[1749722886947,0.72776,2747.7,2747.6,0.72776]
[1749722887537,0.72771,2747.9,2747.8,0.72772]
[1749722887741,0.72771,2747.9,2747.8,17.49272]
[1749722888845,3.2078,2748.3,2748.2,0.72762]
[1749722889040,1.35324,2748.5,2748.4,0.72756]
[1749722889240,1.35326,2748.5,2748.4,0.72756]
[1749722889443,0.72758,2748.4,2748.3,0.72757]
[1749722889739,0.72759,2748.3,2748.2,21.84762]
[1749722890245,3.93539,2748.3,2748.2,21.126]
[1749722892547,3.93539,2748.3,2748.2,21.85362]
[1749722892742,0.72759,2748.3,2748.2,21.126]
[1749722894951,3.93539,2748.3,2748.2,21.126]
[1749722895250,1.81906,2748.2,2747.9,16.777]
[1749722895451,3.93547,2748.0,2747.9,16.777]
[1749722895946,5.22127,2748.0,2747.9,16.777]
[1749722899151,3.93547,2748.0,2747.9,16.777]
[1749722899655,0.6345,2748.2,2747.9,16.8390172]
[1749722899849,0.72764,2748.2,2748.1,0.72762]
[1749722900955,0.7276,2748.3,2748.2,0.72759]
[1749722901155,0.7276,2748.3,2748.2,21.88059]
[1749722901347,0.72758,2748.4,2748.3,0.72757]
[1749722901753,3.2078,2748.6,2748.5,0.72754]
[1749722901950,0.00545981,2749.0,2748.8,0.72745]
[1749722902154,0.72746,2748.9,2748.8,0.72745]
[1749722902356,0.72746,2748.8,2748.7,3.93526]
[1749722902557,0.72746,2748.8,2748.7,5.10346]
[1749722902758,0.72746,2748.8,2748.7,4.376]
[1749722903159,0.72746,2748.8,2748.7,21.16]
[1749722903868,0.72751,2748.6,2748.5,40.8]
[1749722904068,0.72751,2748.6,2748.5,61.959]
[1749722904864,0.72751,2748.6,2748.5,62.68654]
[1749722905164,0.7275,2748.7,2748.6,0.7275]
[1749722905368,0.72751,2748.6,2748.5,23.11082]
[1749722905772,0.72751,2748.6,2748.5,21.159]
[1749722906265,3.2078,2748.7,2748.4,4.375]
[1749722906472,0.72767,2748.0,2747.9,0.0620172]
[1749722906667,0.72767,2748.0,2747.9,4.4370172]
[1749722906872,0.72767,2748.0,2747.9,21.2550172]
[1749722907074,4.02931374,2748.0,2747.9,21.2550172]
[1749722908874,4.02931374,2748.0,2747.9,21.2540172]
[1749722909058,4.02931374,2748.0,2747.9,4.4370172]
[1749722909266,4.02931374,2748.0,2747.9,21.2450172]
[1749722910473,4.02931374,2748.0,2747.9,4.4370172]
[1749722910774,0.72778,2747.6,2747.5,22.012]
[1749722911067,5.39123082,2747.6,2747.5,43.192]
[1749722913569,3.93558,2747.6,2747.5,43.192]
[1749722914370,0.72778,2747.6,2747.5,43.9198]
[1749722914570,0.72774,2747.8,2747.7,0.72775]
[1749722914879,0.72771,2747.9,2747.8,0.7277]
[1749722915170,3.2078,2748.0,2747.9,0.7277]
[1749722915376,3.2078,2748.0,2747.9,1.9467]
[1749722915577,3.93547,2748.0,2747.9,1.9467]
[1749722916672,0.72767,2748.0,2747.9,1.9467]
[1749722919475,0.72767,2748.0,2747.9,1.219]
[1749722919781,0.7277,2747.9,2747.8,21.89771]
[1749722920275,0.7277,2747.9,2747.8,23.14511]
[1749722920476,0.7277,2747.9,2747.8,1.2474]
[1749722920678,0.72772,2747.8,2747.7,1.35305]
[1749722920868,0.72771,2747.9,2747.8,0.7277]
[1749722921070,0.72771,2747.9,2747.8,1.9751]
[1749722922076,1.81919,2748.0,2747.6,0.5993]
[1749722922276,1.81919,2748.0,2747.8,4.376]
[1749722922277,0.7277,2747.9,2747.8,4.376]
[1749722922868,1.81919,2748.0,2747.5,22.0740172]
[1749722923071,0.72778,2747.6,2747.5,22.0740172]
[1749722923275,0.72778,2747.6,2747.5,43.2500172]
[1749722924074,0.72778,2747.6,2747.5,26.4500172]
[1749722924270,0.72778,2747.6,2747.5,43.2470172]
[1749722924471,3.93558,2747.6,2747.5,43.2470172]
[1749722926281,0.72783,2747.4,2747.3,0.00545981]
[1749722926477,0.72783,2747.4,2747.3,21.17845981]
[1749722930686,0.72783,2747.4,2747.3,21.90630981]
[1749722931282,0.00545981,2747.6,2747.3,21.17845981]
[1749722931480,0.72772,2747.9,2747.8,0.7277]
[1749722931681,0.7277,2747.9,2747.8,21.176]
[1749722932683,1.3477,2747.9,2747.8,21.176]
[1749722932889,0.72778,2747.6,2747.5,0.0620172]
[1749722933183,0.72778,2747.6,2747.5,21.2480172]
[1749722934780,3.93558,2747.6,2747.5,21.2420172]
[1749722934984,5.39116997,2747.6,2747.5,21.2420172]
[1749722935383,5.39116997,2747.6,2747.5,0.0620172]
[1749722935784,5.39116997,2747.6,2747.5,16.8550172]
[1749722939186,2.18336997,2747.6,2747.5,16.8550172]
[1749722941689,2.18336997,2747.6,2747.5,17.08680609]
[1749722942293,5.39116997,2747.6,2747.5,17.08680609]
[1749722944396,3.93558,2747.6,2747.5,17.08680609]
[1749722944591,5.39115181,2747.6,2747.5,17.08680609]
[1749722944898,2.18335181,2747.6,2747.5,17.08680609]
[1749722945090,3.8278,2747.9,2747.5,17.08680609]
[1749722945291,0.72772,2747.8,2747.7,0.72772]
[1749722945593,0.72772,2747.8,2747.7,5.11272]
[1749722945792,0.72772,2747.8,2747.7,0.23178889]
[1749722945996,2.18320555,2747.8,2747.7,21.39678889]
[1749722946397,3.43740555,2747.8,2747.7,21.39678889]
[1749722946694,3.43740555,2747.8,2747.7,0.23178889]
[1749722950098,8.43740555,2747.8,2747.7,0.23178889]
[1749722951394,3.43740555,2747.8,2747.7,0.23178889]
[1749722953501,2.18320555,2747.8,2747.7,0.23178889]
[1749722955098,3.44010555,2747.8,2747.7,0.23178889]
[1749722955604,2.18320555,2747.8,2747.7,0.23178889]